bitfinex/quotes_BTCUSD_20250628
["timestamp","ask_amount","ask_price","bid_price","bid_amount"]
[1751149161148,1.01311449,107330.0,107320.0,0.31636737]
[1751149163595,1.01311449,107330.0,107320.0,0.30704979]
[1751149166708,1.01311449,107330.0,107320.0,0.29773213]
[1751149170291,1.01311449,107330.0,107320.0,0.30704979]
[1751149173248,1.01311449,107330.0,107320.0,0.29773213]
[1751149174640,1.01311449,107330.0,107320.0,0.28841438]
[1751149175931,1.00379761,107330.0,107320.0,0.28841438]
[1751149176134,1.00379761,107330.0,107320.0,0.27909654]
[1751149177013,1.00379761,107330.0,107320.0,0.09273799]
[1751149185544,1.15387761,107330.0,107320.0,0.09273799]
[1751149189862,1.16841846,107330.0,107320.0,0.09273799]
[1751149190067,1.19297664,107330.0,107320.0,0.09273799]
[1751149190269,1.17496891,107330.0,107320.0,0.09273799]
[1751149191117,1.19732515,107330.0,107320.0,0.09273799]
[1751149191397,1.17496891,107330.0,107320.0,0.09273799]
[1751149191972,1.19732066,107330.0,107320.0,0.09273799]
[1751149193183,1.17496891,107330.0,107320.0,0.09273799]
[1751149196131,1.16841846,107330.0,107320.0,0.09273799]
[1751149199637,0.85614757,107330.0,107320.0,0.09273799]
[1751149199885,1.16841846,107330.0,107320.0,0.09273799]
[1751149204136,1.16841846,107330.0,107320.0,0.11018841]
[1751149205081,1.16841846,107330.0,107320.0,0.09273799]
[1751149205332,1.16841846,107330.0,107320.0,0.11018832]
[1751149213138,1.17496348,107330.0,107320.0,0.11018832]
[1751149217233,1.19731266,107330.0,107320.0,0.11018832]
[1751149232317,1.18091266,107330.0,107320.0,0.11018832]
[1751149256046,0.86864177,107330.0,107320.0,0.11018832]
[1751149256270,1.18091266,107330.0,107320.0,0.11018832]
[1751149259620,1.18091741,107330.0,107320.0,0.11020845]
[1751149263789,0.85703925,107330.0,107320.0,0.31520242]
[1751149263989,0.8281403,107330.0,107320.0,0.34590242]
[1751149264384,1.14041119,107330.0,107320.0,0.34590242]
[1751149266053,1.14041119,107330.0,107320.0,0.66749097]
[1751149266054,0.45347833,107330.0,107320.0,0.66749097]
[1751149266239,0.46279495,107330.0,107320.0,0.99839675]
[1751149266401,0.51035174,107330.0,107320.0,0.68612586]
[1751149266606,0.51966862,107330.0,107320.0,0.68612586]
[1751149267373,0.51035235,107330.0,107320.0,0.68612586]
[1751149268096,0.51966932,107330.0,107320.0,0.68612586]
[1751149268345,0.66970932,107330.0,107320.0,0.68612586]
[1751149274328,0.51966932,107330.0,107320.0,0.68612586]
[1751149274506,0.51966984,107330.0,107320.0,0.68612604]
[1751149277112,0.51035322,107330.0,107320.0,0.68612604]
[1751149277575,0.51035322,107330.0,107320.0,0.68612552]
[1751149278361,0.51035322,107330.0,107320.0,0.67680812]
[1751149280332,0.51035322,107330.0,107320.0,0.68612552]
[1751149281051,0.50103617,107330.0,107320.0,0.37385463]
[1751149281264,0.50103617,107330.0,107320.0,0.68612552]
[1751149281663,0.51035322,107330.0,107320.0,0.68612552]
[1751149281857,0.51035322,107330.0,107320.0,0.66865531]
[1751149283294,0.50103617,107330.0,107320.0,0.66865531]
[1751149283580,0.51035322,107330.0,107320.0,0.66865531]
[1751149284146,0.69669441,107330.0,107320.0,0.65933791]
[1751149285675,0.69669441,107330.0,107320.0,0.64413791]
[1751149285920,0.68737762,107330.0,107320.0,0.63482042]
[1751149286779,0.68737762,107330.0,107320.0,0.64413791]
[1751149287284,0.68737762,107330.0,107320.0,0.65345531]
[1751149287555,0.68737762,107330.0,107320.0,0.34118442]
[1751149287706,0.68737762,107330.0,107320.0,0.63482042]
[1751149289409,0.68737762,107330.0,107320.0,0.60068518]
[1751149290221,0.68737762,107330.0,107320.0,0.28841429]
[1751149292851,0.68737762,107330.0,107320.0,0.29773195]
[1751149296752,0.68737762,107330.0,107320.0,0.30704953]
[1751149298030,0.68737762,107330.0,107320.0,0.61932042]
[1751149304230,0.68737762,107330.0,107320.0,0.61000284]
[1751149305394,0.68737762,107330.0,107320.0,0.60068518]
[1751149305625,0.67806074,107330.0,107320.0,0.60068518]
[1751149308539,0.67806074,107330.0,107320.0,0.61000284]
[1751149309215,0.67806074,107330.0,107320.0,0.61932042]
[1751149313512,0.67806074,107330.0,107320.0,0.61000284]
[1751149314620,0.67806074,107330.0,107320.0,0.61932042]
[1751149314819,0.67806074,107330.0,107320.0,0.62863791]
[1751149317930,0.67806074,107330.0,107320.0,0.31636702]
[1751149318107,0.67806074,107330.0,107320.0,0.62863791]
[1751149319583,0.67806074,107330.0,107320.0,0.61932042]
[1751149319845,0.67806074,107330.0,107320.0,0.30704953]
[1751149320088,0.67806074,107330.0,107320.0,0.61000284]
[1751149320322,0.67806074,107330.0,107320.0,0.61932042]
[1751149321135,0.67806074,107330.0,107320.0,0.62863791]
[1751149323221,0.49171955,107330.0,107320.0,0.63795531]
[1751149323408,0.49171921,107330.0,107320.0,0.63795531]
[1751149325055,0.50103626,107330.0,107320.0,0.63795531]
[1751149325526,0.50103626,107330.0,107320.0,0.61932042]
[1751149325976,0.50103626,107330.0,107320.0,0.62863791]
[1751149326206,0.49171921,107330.0,107320.0,0.63795522]
[1751149326454,0.49171921,107330.0,107320.0,0.63795531]
[1751149326694,0.50103626,107330.0,107320.0,0.63795531]
[1751149326932,0.50103626,107330.0,107320.0,0.62863791]
[1751149327461,0.50103626,107330.0,107320.0,0.63795531]
[1751149327961,0.49171921,107330.0,107320.0,0.63795531]
[1751149328163,0.49171869,107330.0,107320.0,0.63795487]
[1751149328820,0.50103557,107330.0,107320.0,0.63795487]
[1751149332300,0.50103548,107330.0,107320.0,0.63795487]
[1751149332630,0.38964181,107330.0,107320.0,0.98172576]
[1751149332836,0.3896419,107330.0,107320.0,0.98172576]
[1751149333084,0.38964181,107330.0,107320.0,0.66945487]
[1751149333852,0.39895826,107330.0,107320.0,0.66945487]
[1751149334031,0.39895826,107330.0,107320.0,0.98172576]
[1751149334433,0.38032545,107330.0,107320.0,0.98172576]
[1751149334636,0.3896419,107330.0,107320.0,0.98172576]
[1751149334841,0.38964181,107330.0,107320.0,0.98172576]
[1751149335270,0.38032545,107330.0,107320.0,0.98172576]
[1751149335482,0.04032545,107330.0,107320.0,0.98172576]
[1751149347925,0.04032545,107330.0,107320.0,1.13172576]
[1751149355656,0.04032545,107330.0,107320.0,0.50718398]
[1751149355799,0.04032545,107330.0,107320.0,1.13172576]
[1751149357387,0.04032545,107330.0,107320.0,1.11622576]
[1751149368450,0.04032545,107330.0,107320.0,1.10022576]
[1751149370809,0.04032545,107330.0,107320.0,0.47568398]
[1751149370965,0.04032545,107330.0,107320.0,1.10022576]
[1751149379998,0.00208545,107330.0,107320.0,1.10022576]
[1751149384873,0.01808545,107330.0,107320.0,1.10022576]
[1751149387028,0.00208545,107330.0,107320.0,1.10022576]
[1751149398387,0.00208545,107330.0,107320.0,1.11592576]
[1751149398602,0.00208545,107330.0,107320.0,1.44369665]
[1751149399246,0.00208545,107330.0,107320.0,0.50688398]
[1751149399468,0.00108545,107330.0,107320.0,1.44369665]
[1751149399687,8.545e-05,107330.0,107320.0,1.44369665]
[1751149399878,8.545e-05,107330.0,107320.0,1.44569665]
[1751149400458,8.545e-05,107330.0,107320.0,1.45516231]
[1751149400666,8.545e-05,107330.0,107320.0,1.45616231]
[1751149401069,8.545e-05,107330.0,107320.0,1.14389142]
[1751149401855,8.545e-05,107330.0,107320.0,0.51934964]
[1751149402061,8.545e-05,107330.0,107320.0,1.13442576]
[1751149403578,8.545e-05,107330.0,107320.0,0.95322576]
[1751149403778,8.545e-05,107330.0,107320.0,1.10378576]
[1751149406396,8.545e-05,107330.0,107320.0,1.11908576]
[1751149409222,8.545e-05,107330.0,107320.0,1.13408576]
[1751149413135,8.545e-05,107330.0,107320.0,0.50954398]
[1751149413322,8.545e-05,107330.0,107320.0,1.13408576]
[1751149416905,8.545e-05,107330.0,107320.0,1.13651871]
[1751149418084,8.545e-05,107330.0,107320.0,1.12121871]
[1751149419295,8.545e-05,107330.0,107320.0,1.13621871]
[1751149420419,8.545e-05,107330.0,107320.0,1.12121871]
[1751149427530,8.545e-05,107330.0,107320.0,1.12229871]
[1751149454861,8.545e-05,107330.0,107320.0,1.13839871]
[1751149455275,8.545e-05,107330.0,107320.0,1.15489871]
[1751149455680,8.545e-05,107330.0,107320.0,1.4671696]
[1751149455877,8.545e-05,107330.0,107320.0,1.15489871]
[1751149459091,8.545e-05,107330.0,107320.0,1.13839871]
[1751149459476,8.545e-05,107330.0,107320.0,0.49775693]
[1751149459680,8.545e-05,107330.0,107320.0,1.12229871]
[1751149460440,8.545e-05,107330.0,107320.0,1.12231629]
[1751149460652,8.545e-05,107330.0,107320.0,1.12179629]
[1751149460844,0.01528545,107330.0,107320.0,1.12179629]
[1751149476599,8.545e-05,107330.0,107320.0,1.12179629]
[1751149481051,0.01598545,107330.0,107320.0,1.12179629]
[1751149481519,8.545e-05,107330.0,107320.0,1.12179629]
[1751149481748,8.545e-05,107330.0,107320.0,1.13789629]
[1751149482223,8.545e-05,107330.0,107320.0,1.12179629]
[1751149486562,8.545e-05,107330.0,107320.0,1.13779629]
[1751149486967,8.545e-05,107330.0,107320.0,1.12179629]
[1751149489259,8.545e-05,107330.0,107320.0,1.13679629]
[1751149490120,8.545e-05,107330.0,107320.0,1.12179629]
[1751149493742,0.01638545,107330.0,107320.0,0.49725451]
[1751149493965,0.01638545,107330.0,107320.0,1.12179629]
[1751149501767,0.01638545,107330.0,107320.0,0.97067629]
[1751149502013,0.01638545,107330.0,107320.0,1.12151629]
[1751149502014,0.03298545,107330.0,107320.0,1.12151629]
[1751149503923,0.03298545,107330.0,107320.0,0.97067629]
[1751149504135,0.03298545,107330.0,107320.0,1.12151629]
[1751149504416,0.03298545,107330.0,107320.0,0.97067629]
[1751149504625,0.03298545,107330.0,107320.0,1.12151629]
[1751149512754,0.03298545,107330.0,107320.0,0.34613451]
[1751149512956,0.04230181,107330.0,107320.0,0.4782198]
[1751149513202,0.04230181,107330.0,107320.0,0.79049069]
[1751149513442,0.05161826,107330.0,107320.0,0.79049069]
[1751149513587,0.54651826,107330.0,107320.0,0.79049069]
[1751149513810,0.55583497,107330.0,107320.0,0.79049069]
[1751149513977,0.54651826,107330.0,107320.0,0.79049069]
[1751149514186,0.55583497,107330.0,107320.0,0.79049069]
[1751149514464,0.53720181,107330.0,107320.0,0.79049069]
[1751149514669,0.54651843,107330.0,107320.0,0.79049069]
[1751149517799,0.55583514,107330.0,107320.0,0.79049069]
[1751149518247,0.54651843,107330.0,107320.0,0.79049069]
[1751149518994,0.53720181,107330.0,107320.0,0.79049069]
[1751149519217,0.54651834,107330.0,107320.0,0.79049069]
[1751149519645,0.55583496,107330.0,107320.0,0.79049069]
[1751149519848,0.54651834,107330.0,107320.0,0.79049069]
[1751149520087,0.53720181,107330.0,107320.0,0.79049069]
[1751149520320,0.54651834,107330.0,107320.0,0.79049069]
[1751149521911,0.53720181,107330.0,107320.0,0.79049069]
[1751149522118,0.54651834,107330.0,107320.0,0.79049069]
[1751149523095,0.53720181,107330.0,107320.0,0.79049069]
[1751149523514,0.54651834,107330.0,107320.0,0.79049069]
[1751149524216,0.53720181,107330.0,107320.0,0.79049069]
[1751149524792,0.53720172,107330.0,107320.0,0.79049069]
[1751149524991,0.54651817,107330.0,107320.0,0.79049069]
[1751149527217,0.53720172,107330.0,107320.0,0.79049069]
[1751149528033,0.52788545,107330.0,107320.0,0.79049069]
[1751149528214,0.53720172,107330.0,107320.0,1.10276158]
[1751149528413,0.53720172,107330.0,107320.0,0.79049069]
[1751149529014,0.53720172,107330.0,107320.0,1.10276158]
[1751149533327,0.52788545,107330.0,107320.0,1.10276158]
[1751149537690,0.53720181,107330.0,107320.0,1.10276158]
[1751149538198,0.52788545,107330.0,107320.0,1.10276158]
[1751149540262,0.53720181,107330.0,107320.0,1.10276158]
[1751149540483,0.52788545,107330.0,107320.0,1.10276158]
[1751149540891,0.53720181,107330.0,107320.0,1.10276158]
[1751149541144,0.52788545,107330.0,107320.0,1.10276158]
[1751149541983,0.49498545,107330.0,107320.0,1.10276158]
[1751149544606,0.53358545,107330.0,107320.0,1.10276158]
[1751149545576,0.55008545,107330.0,107320.0,1.10276158]
[1751149545973,0.53358545,107330.0,107320.0,1.10276158]
[1751149548864,0.54858545,107330.0,107320.0,1.10276158]
[1751149550320,0.53358545,107330.0,107320.0,1.10276158]
[1751149551908,0.53358545,107330.0,107320.0,0.4782198]
[1751149552114,0.53358545,107330.0,107320.0,1.08531105]
[1751149556133,0.54938545,107330.0,107320.0,1.08531105]
[1751149558754,0.53358545,107330.0,107320.0,1.08531105]
[1751149560907,0.54888545,107330.0,107320.0,1.08531105]
[1751149564675,0.53358545,107330.0,107320.0,1.08531105]
[1751149567991,0.54988545,107330.0,107320.0,1.08531105]
[1751149570000,0.54988545,107330.0,107320.0,0.46076927]
[1751149570129,0.54988545,107330.0,107320.0,1.08531105]
[1751149571979,0.53358545,107330.0,107320.0,1.08531105]
[1751149572220,0.49498545,107330.0,107320.0,1.42918194]
[1751149577492,0.49498545,107330.0,107320.0,1.11691105]
[1751149581479,0.49498545,107330.0,107320.0,1.10081105]
[1751149581900,0.49498545,107330.0,107320.0,1.08531105]
[1751149583334,0.49498545,107330.0,107320.0,0.93459105]
[1751149583544,0.49498545,107330.0,107320.0,1.08507105]
[1751149583751,0.51098545,107330.0,107320.0,1.08507105]
[1751149585128,0.51098545,107330.0,107320.0,0.46052927]
[1751149585329,0.51098545,107330.0,107320.0,1.08511105]
[1751149585490,0.52748545,107330.0,107320.0,1.08511105]
[1751149585700,0.52748545,107330.0,107320.0,0.93459105]
[1751149586107,0.52748545,107330.0,107320.0,1.08511105]
[1751149587424,0.52748545,107330.0,107320.0,0.93459105]
[1751149588606,0.52748545,107330.0,107320.0,1.08511105]
[1751149590134,0.52748545,107330.0,107320.0,0.31004927]
[1751149590455,0.52748545,107330.0,107320.0,0.77284016]
[1751149590966,0.52748545,107330.0,107320.0,1.08511105]
[1751149592019,0.52748545,107330.0,107320.0,0.77284016]
[1751149594497,0.5368019,107330.0,107320.0,0.77284016]
[1751149594701,0.52748545,107330.0,107320.0,0.77284016]
[1751149594936,0.53680172,107330.0,107320.0,1.08511105]
[1751149595313,0.53680172,107330.0,107320.0,0.93459105]
[1751149595512,0.54611817,107330.0,107320.0,1.08511105]
[1751149596044,0.53680172,107330.0,107320.0,1.08511105]
[1751149596264,0.54611817,107330.0,107320.0,1.08511105]
[1751149596794,0.54611817,107330.0,107320.0,1.08507105]
[1751149597635,0.53680172,107330.0,107320.0,1.08507105]
[1751149601658,0.54611817,107330.0,107320.0,1.08507105]
[1751149601865,0.62600136,107330.0,107320.0,0.77280016]
[1751149602289,0.53680172,107330.0,107320.0,0.77280016]
[1751149602510,0.53680172,107330.0,107320.0,1.08507105]
[1751149604177,0.54611825,107330.0,107320.0,1.08507105]
[1751149604388,0.53680172,107330.0,107320.0,1.08507105]
[1751149604625,0.54611817,107330.0,107320.0,1.08507105]
[1751149605504,0.54611808,107330.0,107320.0,1.08507105]
[1751149605696,0.53680172,107330.0,107320.0,1.08507105]
[1751149607801,0.54611817,107330.0,107320.0,1.08507105]
[1751149610203,0.54611808,107330.0,107320.0,1.08507105]
[1751149610684,0.53680172,107330.0,107320.0,1.08507105]
[1751149611412,0.54611817,107330.0,107320.0,1.08507105]
[1751149612090,0.53680172,107330.0,107320.0,1.08507105]
[1751149614684,0.57532172,107330.0,107320.0,1.08507105]
[1751149614856,0.58463808,107330.0,107320.0,1.08507105]
[1751149618240,0.57532172,107330.0,107320.0,1.08507105]
[1751149619786,0.58463817,107330.0,107320.0,1.08507105]
[1751149620203,0.58463808,107330.0,107320.0,1.08507105]
[1751149620716,0.59395453,107330.0,107320.0,1.08507105]
[1751149622011,0.60327106,107330.0,107320.0,1.08507105]
[1751149622547,0.59395453,107330.0,107320.0,1.08507105]
[1751149624355,0.58463808,107330.0,107320.0,1.08507105]
[1751149624956,0.57532172,107330.0,107320.0,1.08507105]
[1751149625413,0.55882172,107330.0,107320.0,1.08507105]
[1751149625670,0.54950545,107330.0,107320.0,1.08507105]
[1751149626811,0.51098545,107330.0,107320.0,1.08507105]
[1751149632410,0.49498545,107330.0,107320.0,1.08507105]
[1751149632860,0.49498545,107330.0,107320.0,1.10137105]
[1751149633011,0.49498545,107330.0,107320.0,1.11697105]
[1751149633956,0.49498545,107330.0,107320.0,1.10137105]
[1751149634996,0.49498545,107330.0,107320.0,1.08507105]
[1751149636009,0.49498545,107330.0,107320.0,1.10007105]
[1751149638202,0.49498545,107330.0,107320.0,1.08507105]
[1751149653271,0.51361834,107330.0,107320.0,1.08507105]
[1751149654056,0.49498545,107330.0,107320.0,1.08507105]
[1751149663143,0.49498545,107330.0,107320.0,1.10057105]
[1751149664524,0.49498545,107330.0,107320.0,1.08507105]
[1751149673934,0.55953078,107330.0,107320.0,1.08507105]
[1751149675949,0.50998545,107330.0,107320.0,1.08507105]
[1751149681131,0.49498545,107330.0,107320.0,1.08507105]
[1751149692453,0.49498545,107330.0,107320.0,1.08488856]
[1751149699022,0.49498545,107330.0,107320.0,1.10048856]
[1751149699282,0.49498545,107330.0,107320.0,1.08488856]
[1751149701988,0.49498545,107330.0,107320.0,0.30986678]
[1751149702196,0.5698311,107330.0,107320.0,1.08468856]
[1751149704539,0.5698311,107330.0,107320.0,0.46014678]
[1751149704744,0.5698311,107330.0,107320.0,1.08468856]
[1751149714742,0.57914737,107330.0,107320.0,0.46014678]
[1751149714962,0.5698311,107330.0,107320.0,1.08468856]
[1751149717451,0.57914746,107330.0,107320.0,0.93440856]
[1751149717591,0.5698311,107330.0,107320.0,1.08468856]
[1751149717801,0.57914746,107330.0,107320.0,1.08468856]
[1751149719280,0.5698311,107330.0,107320.0,1.08468856]
[1751149719482,0.52090181,107330.0,107320.0,1.08468856]
[1751149720361,0.51158545,107330.0,107320.0,1.08468856]
[1751149720507,0.53650172,107330.0,107320.0,1.08468856]
[1751149723135,0.52718545,107330.0,107320.0,1.08468856]
[1751149727368,0.5959714,107330.0,107320.0,1.08468856]
[1751149727548,0.58665504,107330.0,107320.0,1.08468856]
[1751149727773,0.5959714,107330.0,107320.0,1.08468856]
[1751149728603,0.58665504,107330.0,107320.0,1.08468856]
[1751149729005,0.59597131,107330.0,107320.0,1.08468856]
[1751149736596,0.58665504,107330.0,107320.0,1.08468856]
[1751149737036,0.57105504,107330.0,107320.0,1.08468856]
[1751149740546,0.51158545,107330.0,107320.0,1.08468856]
[1751149750956,0.49498545,107330.0,107320.0,1.08468856]
[1751149763312,0.49498545,107330.0,107320.0,0.93440856]
[1751149763696,0.49498545,107330.0,107320.0,1.08460856]
[1751149804061,0.49498545,107330.0,107320.0,1.11670856]
[1751149820922,0.49498545,107330.0,107320.0,1.10060856]
[1751149830209,0.49498545,107330.0,107320.0,1.08460856]
[1751149830912,0.49498545,107330.0,107320.0,0.46006678]
[1751149831073,0.49498545,107330.0,107320.0,1.08460856]
[1751149847089,0.51008545,107330.0,107320.0,1.08460856]
[1751149878475,0.51008545,107330.0,107320.0,0.46006678]
[1751149878696,0.51008545,107330.0,107320.0,1.08460856]
[1751149888272,0.51008545,107330.0,107320.0,0.46006678]
[1751149888480,0.51008545,107330.0,107320.0,1.08460856]
[1751149929033,0.49498545,107330.0,107320.0,1.08460856]
[1751149941916,0.51018545,107330.0,107320.0,1.08460856]
[1751149942136,0.51018545,107330.0,107320.0,0.46006678]
[1751149942561,0.51018545,107330.0,107320.0,1.08460856]
[1751149981508,0.51018545,107330.0,107320.0,1.08428856]
[1751149981725,0.51018545,107330.0,107320.0,0.93440856]
[1751149981942,0.51018545,107330.0,107320.0,1.08428856]
[1751149982426,0.51018545,107330.0,107320.0,0.93440856]
[1751149982623,0.51018545,107330.0,107320.0,1.08428856]
[1751149983692,0.51018545,107330.0,107320.0,0.93440856]
[1751149983896,0.51018545,107330.0,107320.0,1.08428856]
[1751149985096,0.51018545,107330.0,107320.0,0.93440856]
[1751149985419,0.51018545,107330.0,107320.0,1.08428856]
[1751150014364,0.51018545,107330.0,107320.0,0.93440856]
[1751150014722,0.51018545,107330.0,107320.0,1.08424856]
[1751150030228,0.51018545,107330.0,107320.0,1.08324856]
[1751150030590,0.51018545,107330.0,107320.0,1.08424856]
[1751150036129,0.51018545,107330.0,107320.0,0.45970678]
[1751150036349,0.51018545,107330.0,107320.0,1.08424856]
[1751150036577,0.51018545,107330.0,107320.0,0.45970678]
[1751150036800,0.51018545,107330.0,107320.0,1.08424856]
[1751150042615,0.51018545,107330.0,107320.0,0.93440856]
[1751150042955,0.52628545,107330.0,107320.0,1.08420856]
[1751150043172,0.52628545,107330.0,107320.0,1.08220856]
[1751150043797,0.60220485,107330.0,107320.0,0.29854947]
[1751150044020,1.22514005,107330.0,107320.0,0.45766712]
[1751150044229,1.40216488,107330.0,107320.0,0.45966712]
[1751150046184,1.44028488,107330.0,107320.0,0.45966712]
[1751150046581,1.12801399,107330.0,107320.0,0.45966712]
[1751150046791,1.12801399,107330.0,107320.0,0.46898452]
[1751150049758,1.12801399,107330.0,107320.0,0.31918452]
[1751150049987,1.12801399,107330.0,107320.0,0.46898452]
[1751150050588,1.12801399,107330.0,107320.0,0.31918452]
[1751150050800,1.12801399,107330.0,107320.0,0.46898452]
[1751150051026,1.12801399,107330.0,107320.0,0.31918452]
[1751150051210,1.12801399,107330.0,107320.0,0.46898452]
[1751150051483,1.12801399,107330.0,107320.0,0.31918452]
[1751150051682,1.12801399,107330.0,107320.0,0.46898452]
[1751150054209,1.22077407,107330.0,107320.0,0.46898452]
[1751150054629,1.12801399,107330.0,107320.0,0.46898452]
[1751150058109,1.12801399,107330.0,107320.0,0.47830183]
[1751150058321,0.9416728,107330.0,107320.0,0.47830183]
[1751150058534,0.9416728,107330.0,107320.0,0.79057272]
[1751150065544,0.93235575,107330.0,107320.0,0.79057272]
[1751150067548,0.93235557,107330.0,107320.0,0.79057272]
[1751150067884,0.92303834,107330.0,107320.0,0.79057272]
[1751150068534,0.87310545,107330.0,107320.0,1.10284361]
[1751150068754,0.83498545,107330.0,107320.0,1.10284361]
[1751150069604,0.49498545,107330.0,107320.0,1.10284361]
[1751150069871,0.49498545,107330.0,107320.0,1.4464145]
[1751150070064,8.545e-05,107330.0,107320.0,1.4464145]
[1751150071338,8.545e-05,107330.0,107320.0,1.53917458]
[1751150078390,0.58188799,107360.0,107350.0,0.21425138]
[1751150078606,0.18952089,107360.0,107350.0,0.67632227]
[1751150078829,0.1895208,107360.0,107350.0,0.67632227]
[1751150079744,0.1935208,107360.0,107350.0,0.36405138]
[1751150080445,0.5335208,107360.0,107350.0,0.36405138]
[1751150081087,0.54283482,107360.0,107350.0,0.36405138]
[1751150081955,0.5335208,107360.0,107350.0,0.36405138]
[1751150082384,0.54283482,107360.0,107350.0,0.36405138]
[1751150082997,0.54283473,107360.0,107350.0,0.36405138]
[1751150084062,0.5335208,107360.0,107350.0,0.36405138]
[1751150084613,0.52420687,107360.0,107350.0,0.36405138]
[1751150084954,0.53352063,107360.0,107350.0,0.36405138]
[1751150085940,0.54283456,107360.0,107350.0,0.36405138]
[1751150086955,0.53352063,107360.0,107350.0,0.36405138]
[1751150087156,0.54283456,107360.0,107350.0,0.36405138]
[1751150088958,0.55214875,107360.0,107350.0,0.36405138]
[1751150089157,0.54283456,107360.0,107350.0,0.67632227]
[1751150089582,0.55214858,107360.0,107350.0,0.67632227]
[1751150089958,0.54283456,107360.0,107350.0,0.67632227]
[1751150091243,0.54283456,107360.0,107350.0,0.36405138]
[1751150091674,0.55214858,107360.0,107350.0,0.36405138]
[1751150093753,0.5148932,107360.0,107350.0,0.36405138]
[1751150093973,0.52420704,107360.0,107350.0,0.67632227]
[1751150095690,0.52420704,107360.0,107350.0,0.36405138]
[1751150096593,0.52420696,107360.0,107350.0,0.67632227]
[1751150096828,0.52420687,107360.0,107350.0,0.67632227]
[1751150098048,0.53352063,107360.0,107350.0,0.67632227]
[1751150098252,0.52420687,107360.0,107350.0,0.67632227]
[1751150098454,0.50920687,107360.0,107350.0,0.67632227]
[1751150098999,0.4848932,107360.0,107350.0,0.67632227]
[1751150099178,0.51040687,107360.0,107350.0,0.67632227]
[1751150099598,0.5010932,107360.0,107350.0,0.67632227]
[1751150099824,0.51040687,107360.0,107350.0,0.67632227]
[1751150100371,0.50701077,107360.0,107350.0,0.67632227]
[1751150100756,0.49081077,107360.0,107350.0,0.67632227]
[1751150101422,0.4814971,107360.0,107350.0,0.67632227]
[1751150102092,0.00445889,107360.0,107350.0,0.67632227]
[1751150102295,0.00445889,107360.0,107350.0,0.70812227]
[1751150103131,0.00145889,107360.0,107350.0,0.70812227]
[1751150103337,0.00245889,107360.0,107350.0,0.70812227]
[1751150103684,0.00145889,107360.0,107350.0,0.70812227]
[1751150104091,0.00245889,107360.0,107350.0,0.70812227]
[1751150106174,0.00245889,107360.0,107350.0,0.37995138]
[1751150106454,0.00245889,107360.0,107350.0,0.67632227]
[1751150110672,0.01805889,107360.0,107350.0,0.67632227]
[1751150114241,0.02737265,107360.0,107350.0,0.67632227]
[1751150115053,0.03668658,107360.0,107350.0,0.67632227]
[1751150115279,0.05268658,107360.0,107350.0,0.67632227]
[1751150119047,0.04337256,107360.0,107350.0,0.67632227]
[1751150119225,0.03405889,107360.0,107350.0,0.67632227]
[1751150120822,0.01805889,107360.0,107350.0,0.67632227]
[1751150121842,0.02737256,107360.0,107350.0,0.67632227]
[1751150122202,0.01805889,107360.0,107350.0,0.67632227]
[1751150125817,0.02737265,107360.0,107350.0,0.52652227]
[1751150126019,0.04347265,107360.0,107350.0,0.67628227]
[1751150126264,0.05278649,107360.0,107350.0,0.67628227]
[1751150126864,0.04347265,107360.0,107350.0,0.67628227]
[1751150128033,0.05278667,107360.0,107350.0,0.67628227]
[1751150128161,0.05278658,107360.0,107350.0,0.67628227]
[1751150129218,0.05278658,107360.0,107350.0,0.36401138]
[1751150129219,0.38368577,107360.0,107350.0,0.36401138]
[1751150129387,0.07141488,107360.0,107350.0,0.36401138]
[1751150129790,0.07141488,107360.0,107350.0,0.67628227]
[1751150130399,0.0621006,107360.0,107350.0,0.67628227]
[1751150130604,0.07141479,107360.0,107350.0,0.67628227]
[1751150132706,0.16417487,107360.0,107350.0,0.36401138]
[1751150133083,0.16417487,107360.0,107350.0,0.67628227]
[1751150136323,0.47644576,107360.0,107350.0,0.35469667]
[1751150136516,0.48576004,107360.0,107350.0,0.20493667]
[1751150136714,0.47644628,107360.0,107350.0,0.35465667]
[1751150136957,0.47644628,107360.0,107350.0,0.36397155]
[1751150137193,0.6627354,107360.0,107350.0,0.36397155]
[1751150138058,0.6627354,107360.0,107350.0,0.37328635]
[1751150139998,0.47644628,107360.0,107350.0,0.38260106]
[1751150140222,0.48576064,107360.0,107350.0,0.38260106]
[1751150146143,0.47644628,107360.0,107350.0,0.38260106]
[1751150146603,0.16417539,107360.0,107350.0,0.38260106]
[1751150152718,0.14554692,107360.0,107350.0,0.38260106]
[1751150152926,0.15486111,107360.0,107350.0,0.38260106]
[1751150153339,0.13876111,107360.0,107350.0,0.38260106]
[1751150153976,0.15376111,107360.0,107350.0,0.38260106]
[1751150154424,0.19184111,107360.0,107350.0,0.38260106]
[1751150154873,0.19184111,107360.0,107350.0,0.69487195]
[1751150155072,0.20115539,107360.0,107350.0,0.69487195]
[1751150155270,0.19184111,107360.0,107350.0,0.69487195]
[1751150156934,0.20115539,107360.0,107350.0,0.69487195]
[1751150157539,0.20115539,107360.0,107350.0,0.38260106]
[1751150158823,0.19184111,107360.0,107350.0,0.38260106]
[1751150161235,0.20115539,107360.0,107350.0,0.38260106]
[1751150163077,0.21046975,107360.0,107350.0,0.38260106]
[1751150163285,0.19184111,107360.0,107350.0,0.38260106]
[1751150163485,0.19184111,107360.0,107350.0,0.69487195]
[1751150164566,0.19184111,107360.0,107350.0,0.38260106]
[1751150166202,0.18252692,107360.0,107350.0,0.38260106]
[1751150166424,0.19184102,107360.0,107350.0,0.38260106]
[1751150168171,0.2011553,107360.0,107350.0,0.38260106]
[1751150168822,0.19184102,107360.0,107350.0,0.38260106]
[1751150169513,0.2011553,107360.0,107350.0,0.38260106]
[1751150169693,0.51342619,107360.0,107350.0,0.38260106]
[1751150170018,0.52274055,107360.0,107350.0,0.38260106]
[1751150170199,0.52274107,107360.0,107350.0,0.38260106]
[1751150171080,0.69971617,107360.0,107350.0,0.37328635]
[1751150177447,0.51342705,107360.0,107350.0,0.38260106]
[1751150177726,0.5041126,107360.0,107350.0,0.38260106]
[1751150177952,0.51342705,107360.0,107350.0,0.38260106]
[1751150178671,0.69971617,107360.0,107350.0,0.37328635]
[1751150184152,0.69040207,107360.0,107350.0,0.36397155]
[1751150185079,0.50411295,107360.0,107350.0,0.38260106]
[1751150185769,0.19184206,107360.0,107350.0,0.38260106]
[1751150186515,0.17684206,107360.0,107350.0,0.38260106]
[1751150188418,0.16752761,107360.0,107350.0,0.38260106]
[1751150188832,0.16752761,107360.0,107350.0,0.37328635]
[1751150189252,0.35381673,107360.0,107350.0,0.37328635]
[1751150192160,0.35381673,107360.0,107350.0,0.35465667]
[1751150193205,0.35381673,107360.0,107350.0,0.3453417]
[1751150193206,0.36070245,107360.0,107350.0,0.3453417]
[1751150193420,0.67297334,107360.0,107350.0,0.3453417]
[1751150193625,0.67297334,107360.0,107350.0,0.35465685]
[1751150194440,0.21425147,107350.0,107330.0,0.27611005]
[1751150194649,0.03725971,107350.0,107340.0,0.35467577]
[1751150194849,0.03725971,107350.0,107340.0,0.36399135]
[1751150195251,0.02794448,107350.0,107340.0,0.67626224]
[1751150195675,0.02794439,107350.0,107340.0,0.67626224]
[1751150195890,0.03725936,107350.0,107340.0,0.67626224]
[1751150197014,0.03725936,107350.0,107340.0,0.67726224]
[1751150198072,0.02794439,107350.0,107340.0,0.67726224]